bitfinex/quotes_SOLUSD_20220105
["timestamp","ask_amount","ask_price","bid_price","bid_amount"]
[1641403749307,48.0187993,167.61,167.55,9.0427]
[1641403749910,23.8813,167.61,167.55,9.0427]
[1641403750935,24.56639192,167.6,167.55,9.0427]
[1641403752336,0.9573,167.55,167.54,6.22607598]
[1641403752736,3.98949997,167.55,167.54,6.22607598]
[1641403752936,3.98949997,167.55,167.52,3.11044098]
[1641403753337,3.98949997,167.55,167.53,6.22788236]
[1641403753737,0.9573,167.55,167.53,6.22788236]
[1641403762148,6.06439994,167.54,167.53,6.22788236]
[1641403763148,3.03219997,167.54,167.53,6.22788236]
[1641403763347,0.9573,167.55,167.53,6.22788236]
[1641403764149,0.9573,167.55,167.53,9.92788236]
[1641403772859,24.1602,167.64,167.54,57.0]
[1641403773260,75.158,167.68,167.54,65.54]
[1641403773462,24.1915,167.67,167.55,24.6674]
[1641403773662,24.1915,167.67,167.56,8.54]
[1641403773863,30.09126205,167.66,167.56,8.54]
[1641403774262,30.09126205,167.66,167.56,12.24]
[1641403776468,24.3234,167.65,167.56,12.24]
[1641403776785,30.09126205,167.66,167.56,12.24]
[1641403776991,30.09126205,167.66,167.56,18.11113063]
[1641403777190,2.34426841,167.66,167.56,18.11113063]
[1641403777391,76.5957,167.71,167.56,18.11113063]
[1641403777592,23.7522,167.7,167.57,24.4558]
[1641403777794,23.7522,167.7,167.57,32.9958]
[1641403778191,26.27853101,167.69,167.58,8.9429]
[1641403778392,29.0622625,167.69,167.59,8.54]
[1641403779396,29.0622625,167.69,167.59,12.24]
[1641403779998,24.8798,167.68,167.59,12.24]
[1641403803162,24.8798,167.68,167.59,18.11113063]
[1641403805267,24.8798,167.68,167.59,12.24]
[1641403806567,24.8798,167.68,167.59,7.24]
[1641403808968,24.8798,167.68,167.59,3.7]
[1641403809569,1.04,167.59,167.57,6.22452294]
[1641403809770,1.04,167.59,167.57,30.47372294]
[1641403809971,1.04,167.59,167.57,12.09565357]
[1641403810773,1.04,167.59,167.57,13.94565357]
[1641403810971,87.03219997,167.58,167.48,12.45054194]
[1641403811174,2.39924007,167.57,167.47,103.6995]
[1641403811378,25.08754007,167.57,167.5,3.11103549]
[1641403811572,30.08754007,167.57,167.47,89.0402]
[1641403811772,30.08754007,167.57,167.47,98.37844986]
[1641403811973,23.8685382,167.56,167.5,3.11119278]
[1641403812173,23.8685382,167.56,167.47,102.55743681]
[1641403812374,23.8685382,167.56,167.47,98.37844986]
[1641403812573,23.8685382,167.56,167.47,102.55844986]
[1641403812775,23.8685382,167.56,167.47,103.48344986]
[1641403813777,36.12754007,167.57,167.47,103.48344986]
[1641403813979,36.12754007,167.57,167.47,112.43194986]
[1641403814776,11.04,167.57,167.47,120.86482519]
[1641403815177,11.04,167.57,167.48,3.11173288]
[1641403815376,11.04,167.57,167.49,8.54]
[1641403816279,11.04,167.57,167.49,17.87824986]
[1641403816480,11.04,167.57,167.49,14.45824986]
[1641403816679,11.04,167.57,167.49,15.40824986]
[1641403816878,11.04,167.57,167.49,24.35574986]
[1641403817480,11.04,167.57,167.49,19.35574986]
[1641403819085,11.04,167.57,167.5,8.9471]
[1641403819583,11.04,167.57,167.49,10.40824986]
[1641403819781,10.09,167.57,167.5,8.54]
[1641403822506,10.09,167.57,167.5,3.54]
[1641403823007,9.14,167.57,167.5,3.54]
[1641403825810,9.14,167.57,167.5,12.4873]
[1641403827510,9.14,167.57,167.5,7.4873]
[1641403829715,9.14,167.57,167.49,26.82604986]
[1641403829917,9.14,167.57,167.49,29.93779959]
[1641403830617,9.14,167.57,167.49,20.98999959]
[1641403832520,5.0,167.5,167.49,20.98999959]
[1641403832720,5.0,167.5,167.49,34.41710659]
[1641403832923,9.14,167.57,167.5,59.0]
[1641403833121,9.14,167.57,167.51,8.54]
[1641403833822,9.14,167.57,167.52,8.9463]
[1641403834021,9.14,167.57,167.52,17.4863]
[1641403837623,9.14,167.57,167.52,12.4863]
[1641403839023,9.14,167.57,167.53,8.9457]
[1641403839627,9.14,167.57,167.54,4.25003265]
[1641403841927,22.972,167.6,167.54,4.25003265]
[1641403842328,4.88996735,167.54,167.53,8.9457]
[1641403842529,6.72996735,167.54,167.53,17.4857]
[1641403842730,6.24097062,167.54,167.53,69.4857]
[1641403843135,6.24097062,167.54,167.53,17.4857]
[1641403843935,6.24097062,167.54,167.53,53.4857]
[1641403846537,6.24097062,167.54,167.53,17.4857]
[1641403847837,6.24097062,167.54,167.53,44.4857]
[1641403857976,5.61687356,167.54,167.53,44.4857]
[1641403858177,5.61687356,167.54,167.53,8.54]
[1641403862878,5.61687356,167.54,167.52,8.7715]
[1641403867993,11.6812735,167.54,167.52,8.7715]
[1641403871895,6.06439994,167.54,167.52,8.7715]
[1641403872096,28.50036414,167.53,167.5,8.54]
[1641403872297,5.61687356,167.52,167.5,8.54]
[1641403872497,2.40695638,167.51,167.5,8.54]
[1641403872796,2.40695638,167.51,167.49,3.11196066]
[1641403873799,2.40695638,167.51,167.48,6.2275967]
[1641403876026,44.03219997,167.5,167.46,9.162]
[1641403876727,44.03219997,167.5,167.42,95.85464554]
[1641403876926,2.42255309,167.48,167.42,95.85464554]
[1641403877528,2.42255309,167.48,167.42,104.93964554]
[1641403877725,2.42255309,167.48,167.42,111.46552764]
[1641403877929,2.42255309,167.48,167.42,102.38052764]
[1641403878927,24.6639,167.49,167.42,102.38052764]
[1641403879128,24.6639,167.49,167.43,24.49534539]
[1641403879628,24.6639,167.49,167.44,9.48052764]
[1641403880029,24.6639,167.49,167.45,2.26293445]
[1641403880335,24.6639,167.49,167.46,9.48052764]
[1641403882830,3.03219997,167.48,167.46,9.48052764]
[1641403884232,24.6639,167.49,167.46,9.48052764]
[1641403884431,6.06439994,167.48,167.46,9.48052764]
[1641403885433,3.03219997,167.48,167.46,9.48052764]
[1641403885634,24.6639,167.49,167.46,9.48052764]
[1641403888038,6.06439994,167.48,167.46,9.48052764]
[1641403889638,6.06439994,167.48,167.44,3.0309423]
[1641403890643,24.6639,167.49,167.44,3.0309423]
[1641403891745,24.6639,167.49,167.44,12.51146994]
[1641403895047,24.1639,167.49,167.45,8.54]
[1641403895447,24.1639,167.49,167.45,18.02052764]
[1641403896046,5.61687356,167.52,167.45,18.02052764]
[1641403896249,22.8717,167.51,167.45,18.02052764]
[1641403897747,22.8717,167.51,167.45,26.97022764]
[1641403898849,22.3717,167.51,167.45,26.97022764]
[1641403899652,25.01456019,167.51,167.45,18.02052764]
[1641403902091,22.3717,167.51,167.45,18.02052764]
[1641403902285,22.3717,167.51,167.45,12.40365408]
[1641403903288,25.02636928,167.51,167.45,12.40365408]
[1641403903489,23.5065,167.54,167.45,12.40365408]
[1641403903688,23.7773,167.53,167.45,12.40365408]
[1641403904689,2.52044909,167.52,167.45,12.40365408]
[1641403904887,23.8387,167.51,167.45,21.35325408]
[1641403905888,23.8387,167.51,167.45,12.40365408]
[1641403911096,23.8387,167.51,167.45,2.92312644]
[1641403911695,2.07687356,167.45,167.43,30.9744555]
[1641403911897,2.07687356,167.45,167.43,39.5144555]
[1641403912495,2.07687356,167.45,167.43,30.9744555]
[1641403912895,2.07687356,167.45,167.43,40.45498314]
[1641403914598,5.10907353,167.45,167.43,40.45498314]
[1641403914797,8.1412735,167.45,167.43,40.45498314]
[1641403914998,10.48011113,167.45,167.43,40.45498314]
[1641403915799,22.76158763,167.44,167.43,40.45498314]
[1641403916499,10.48011113,167.45,167.43,40.45498314]
[1641403916798,10.48011113,167.45,167.43,35.45498314]
[1641403917001,8.1412735,167.45,167.43,35.45498314]
[1641403920107,2.07687356,167.45,167.43,35.45498314]
[1641403921704,2.07687356,167.45,167.43,30.45498314]
[1641403926713,2.07687356,167.45,167.43,25.45498314]
[1641403926944,5.10907353,167.45,167.43,25.45498314]
[1641403927146,2.07687356,167.45,167.43,25.45498314]
[1641403931846,2.07687356,167.45,167.43,20.45498314]
[1641403932046,24.0804,167.48,167.43,20.45498314]
[1641403932447,24.0804,167.48,167.43,18.37810958]
[1641403936849,24.0804,167.48,167.43,13.37810958]
[1641403940653,26.31502493,167.48,167.43,13.37810958]
[1641403941853,26.31502493,167.48,167.43,8.37810958]
[1641403942054,26.31502493,167.48,167.43,14.60936406]
[1641403943155,24.0804,167.48,167.43,14.60936406]
[1641403944158,26.6599381,167.48,167.43,14.60936406]
[1641403946763,26.6599381,167.48,167.43,9.60936406]
[1641403946962,26.6599381,167.48,167.43,6.23125448]
[1641403951765,26.6599381,167.48,167.43,1.23125448]
[1641403952166,26.6599381,167.48,167.42,9.0605]
[1641403952969,26.6599381,167.48,167.42,11.77068686]
[1641403953971,26.6599381,167.48,167.42,20.8104843]
[1641403955371,26.6599381,167.48,167.43,6.23154555]
[1641403956773,26.6599381,167.48,167.43,1.23154555]
[1641403957174,26.6599381,167.48,167.42,21.21178075]
[1641403963905,26.6599381,167.48,167.42,12.15128075]
[1641403965910,26.6599381,167.48,167.42,7.15128075]
[1641403966107,26.6599381,167.48,167.42,3.11148331]
[1641403968309,26.6599381,167.48,167.43,2.88635292]
[1641403968512,24.0804,167.48,167.43,2.88635292]
[1641403969610,26.6354689,167.48,167.43,2.88635292]
[1641403970912,26.6354689,167.48,167.42,0.99783623]
[1641403971119,26.6354689,167.48,167.4,26.37533722]
[1641403971412,26.6354689,167.48,167.4,2.18963722]
[1641403971611,26.6354689,167.48,167.4,10.86832355]
[1641403975918,26.6354689,167.48,167.41,2.8454779]
[1641403978823,26.6354689,167.48,167.41,11.32119359]
[1641403980261,26.6354689,167.48,167.41,2.8454779]
[1641403980760,2.1545221,167.41,167.4,0.98411511]
[1641403981359,2.1545221,167.41,167.4,38.52411511]
[1641403982259,2.1545221,167.41,167.4,9.52411511]
[1641403985763,2.1545221,167.41,167.4,4.52411511]
[1641403987064,2.1545221,167.41,167.4,12.9998308]
[1641403987562,2.1545221,167.41,167.4,46.60386789]
[1641403989567,2.1545221,167.41,167.4,41.9998308]
[1641403990770,2.1545221,167.41,167.4,36.9998308]
[1641403991171,2.1545221,167.41,167.4,41.60386789]
[1641403991571,2.1545221,167.41,167.4,36.9998308]
[1641403991971,2.25693291,167.46,167.4,36.9998308]
[1641403992171,2.25693291,167.46,167.4,45.5398308]
[1641403992372,2.25693291,167.46,167.4,43.3853087]
[1641403992871,2.25693291,167.46,167.4,14.3853087]
[1641403993071,2.25693291,167.46,167.4,8.54]
[1641403995775,2.25693291,167.46,167.4,3.54]
[1641403996776,2.25693291,167.46,167.39,15.58108997]
[1641404000776,2.25693291,167.46,167.39,10.58108997]
[1641404001178,2.25693291,167.46,167.38,3.11379955]
[1641404001577,2.25693291,167.46,167.38,11.3995414]
[1641404001781,23.2717,167.45,167.38,11.3995414]
[1641404005916,23.2717,167.45,167.38,6.3995414]
[1641404006115,23.2717,167.45,167.38,9.51212129]
[1641404006316,23.2717,167.45,167.38,3.11257989]
[1641404006520,23.2717,167.45,167.37,8.8781]
[1641404006718,23.2717,167.45,167.37,17.4181]
[1641404007917,23.2717,167.45,167.37,25.56761626]
[1641404008818,2.25693291,167.46,167.37,21.63165335]
[1641404009220,2.25693291,167.46,167.38,3.11255951]
[1641404010024,2.25693291,167.46,167.37,21.63165335]
[1641404010220,23.6348,167.45,167.37,21.63165335]
[1641404010922,5.0,167.38,167.37,21.63165335]
[1641404013022,5.0,167.38,167.37,17.02761626]
[1641404013423,5.0,167.38,167.37,21.63165335]
[1641404019736,8.03219997,167.38,167.37,21.63165335]
[1641404019933,8.03219997,167.38,167.37,10.57403709]
[1641404020140,8.03219997,167.38,167.37,5.97]
[1641404020534,5.0,167.38,167.37,10.57403709]
[1641404020735,5.0,167.38,167.37,5.97]
[1641404021135,5.0,167.38,167.37,10.57403709]
[1641404021337,5.0,167.38,167.37,14.11951626]
[1641404021737,5.0,167.38,167.37,18.72355335]
[1641404021939,23.1214,167.41,167.37,14.11951626]
[1641404022337,23.1214,167.41,167.37,13.72355335]
[1641404022537,23.1214,167.41,167.37,9.11951626]
[1641404022937,23.1214,167.41,167.37,13.72355335]
[1641404023137,23.1214,167.41,167.37,9.11951626]
[1641404023538,23.1214,167.41,167.37,13.72355335]
[1641404023739,23.1214,167.41,167.37,9.11951626]
[1641404024038,23.1214,167.41,167.37,13.72355335]
[1641404024640,23.1214,167.41,167.37,9.11951626]
[1641404024840,23.1214,167.41,167.37,13.72355335]
[1641404025240,23.1214,167.41,167.37,9.11951626]
[1641404025441,23.1214,167.41,167.37,13.72355335]
[1641404025740,23.1214,167.41,167.37,9.11951626]
[1641404026139,23.1214,167.41,167.37,13.72355335]
[1641404026340,23.1214,167.41,167.37,9.11951626]
[1641404026740,23.1214,167.41,167.37,13.72355335]
[1641404026943,23.1214,167.41,167.37,9.11951626]
[1641404027440,23.1214,167.41,167.37,13.72355335]
[1641404027641,23.1214,167.41,167.37,9.11951626]
[1641404028040,23.1214,167.41,167.37,13.72355335]
[1641404028343,23.1214,167.41,167.37,9.11951626]
[1641404028541,23.1214,167.41,167.38,4.60403709]
[1641404028942,23.1214,167.41,167.39,0.97]
[1641404031444,3.03219997,167.4,167.39,0.97]
[1641404031647,26.15359997,167.41,167.39,0.97]
[1641404031881,23.1214,167.41,167.39,0.97]
[1641404032083,23.1214,167.41,167.38,0.97]
[1641404033178,23.1214,167.41,167.38,9.11951626]
[1641404033980,6.06439994,167.4,167.38,9.11951626]
[1641404034786,23.1214,167.41,167.38,9.11951626]
[1641404039393,6.06439994,167.4,167.38,9.11951626]
[1641404039692,23.1214,167.41,167.38,9.11951626]
[1641404042292,23.1214,167.41,167.38,0.97]
[1641404045523,6.06439994,167.4,167.38,0.97]
[1641404045924,6.06439994,167.4,167.35,20.74802869]
[1641404046323,6.06439994,167.4,167.36,5.57403709]
[1641404046525,23.1214,167.41,167.36,5.57403709]
[1641404046830,23.1214,167.41,167.36,13.72355335]
[1641404048425,23.1214,167.41,167.37,6.2335215]
[1641404049024,23.1214,167.41,167.38,0.97]
[1641404050723,23.1214,167.41,167.38,9.11951626]
[1641404050928,98.1111,167.48,167.38,9.11951626]
[1641404051126,23.512,167.47,167.38,9.11951626]
[1641404051926,2.56183795,167.46,167.38,9.11951626]
[1641404052326,22.8566,167.45,167.38,0.97]
[1641404055029,22.8566,167.45,167.38,9.11951626]
[1641404056130,22.8566,167.45,167.38,4.11951626]
[1641404056432,22.8566,167.45,167.37,6.2335215]
[1641404059034,5.0,167.38,167.37,6.2335215]
[1641404061037,11.06439994,167.38,167.37,1.2335215]
[1641404061238,5.0,167.38,167.36,3.11180783]
[1641404061739,5.0,167.38,167.36,10.97026854]
[1641404063940,6.06439994,167.37,167.36,5.97026854]
[1641404064139,5.0,167.38,167.36,5.97026854]
[1641404065340,5.0,167.38,167.35,9.0963]
[1641404065744,5.0,167.38,167.35,13.70033709]
[1641404065941,5.0,167.36,167.35,13.70033709]
[1641404069046,11.06439994,167.36,167.35,8.70033709]
[1641404069474,5.0,167.36,167.35,8.70033709]
[1641404070377,77.06439994,167.36,167.35,4.60403709]
[1641404070577,49.214681,167.34,167.33,3.11152581]
[1641404070776,49.214681,167.34,167.29,92.9]
[1641404071376,49.214681,167.34,167.28,320.22800102]
[1641404071377,75.02396235,167.34,167.28,320.22800102]
[1641404071576,83.62396235,167.34,167.28,292.56780102]
[1641404071777,83.88396235,167.34,167.25,0.92349266]
[1641404072077,84.38396235,167.34,167.25,0.92349266]
[1641404072278,84.38396235,167.34,167.22,12.14656716]
[1641404072279,84.0,167.33,167.22,12.14656716]
[1641404072579,2.52154786,167.31,167.22,9.0342]
[1641404072776,0.06,167.3,167.2,3.0]
[1641404072976,0.06,167.3,167.2,2.0]
[1641404073178,0.06,167.3,167.19,8.8699]
[1641404073680,0.06,167.3,167.2,6.24019687]
[1641404074077,0.06,167.3,167.2,1.24019687]
[1641404074376,0.06,167.3,167.19,8.8699]
[1641404075478,8.54,167.29,167.16,7.72209127]
[1641404075677,3.08322724,167.28,167.16,6.72209127]
[1641404075878,3.08322724,167.28,167.16,6.22209127]
[1641404076985,3.08322724,167.28,167.15,0.9111096]
[1641404077182,29.48061155,167.27,167.15,0.9111096]
[1641404077583,29.74061155,167.27,167.15,0.9111096]
[1641404078383,29.48061155,167.27,167.15,0.9111096]
[1641404078583,29.74061155,167.27,167.15,0.9111096]
[1641404078986,4.0888904,167.15,167.14,12.9987]
[1641404079683,10.15329034,167.15,167.14,12.9987]
[1641404079984,1.5888904,167.15,167.14,12.9987]
[1641404080383,1.5888904,167.15,167.14,42.9987]
[1641404080583,1.5888904,167.15,167.14,12.9987]
[1641404081389,1.5888904,167.15,167.14,38.9987]
[1641404081586,1.5888904,167.15,167.14,42.1129323]
[1641404082087,2.21495448,167.23,167.14,42.1129323]
[1641404082488,9.9388904,167.14,167.13,0.6629323]
[1641404082688,16.00329034,167.14,167.13,0.6629323]
[1641404083086,9.9388904,167.14,167.13,12.70864951]
[1641404084187,14.9388904,167.14,167.13,9.5945323]
[1641404084690,14.9388904,167.14,167.13,0.6629323]
[1641404084887,14.9388904,167.14,167.11,15.60116818]
[1641404085090,14.9388904,167.14,167.08,36.76324909]
[1641404085590,14.9388904,167.14,167.08,20.46861457]
[1641404085791,14.9388904,167.14,167.09,3.86]
[1641404085991,14.9388904,167.14,167.08,25.12385794]
[1641404086696,14.9388904,167.14,167.08,16.15375794]
[1641404088092,14.9388904,167.14,167.09,3.11426897]
[1641404088294,14.9388904,167.14,167.1,8.9692]
[1641404088894,14.9388904,167.14,167.09,3.11426897]
[1641404089093,14.9388904,167.14,167.09,1.46426897]
[1641404089298,14.9388904,167.14,167.09,16.15375794]
[1641404089497,14.9388904,167.14,167.11,8.9684]
[1641404089693,3.03219997,167.13,167.09,19.26771493]
[1641404089894,14.9388904,167.14,167.09,19.26771493]
[1641404090394,2.47458196,167.13,167.09,16.15375794]
[1641404090594,2.47458196,167.13,167.09,8.54]
[1641404091198,2.47458196,167.13,167.06,4.3057493]
[1641404091996,14.9388904,167.14,167.06,4.3057493]
[1641404092195,14.9388904,167.14,167.06,1.8057493]
[1641404092796,14.9388904,167.14,167.06,9.41950724]
[1641404092998,14.9388904,167.14,167.06,16.15375794]
[1641404093297,14.9388904,167.14,167.07,3.11300301]
[1641404093696,14.9388904,167.14,167.08,7.63103474]
[1641404096400,14.9388904,167.14,167.06,10.54]
[1641404097504,14.9388904,167.14,167.07,3.11280663]
[1641404098905,14.9388904,167.14,167.07,11.65280663]
[1641404100906,14.9388904,167.14,167.07,19.28384137]
[1641404101104,11.82625708,167.14,167.07,19.28384137]
[1641404101910,11.82625708,167.14,167.09,8.9693]
[1641404102109,11.82625708,167.14,167.09,17.5093]
[1641404102910,11.82625708,167.14,167.1,8.9688]
[1641404103512,11.82625708,167.14,167.09,8.54]
[1641404104315,11.82625708,167.14,167.09,8.36582274]
[1641404104711,11.82625708,167.14,167.09,17.33472274]
[1641404106116,11.82625708,167.14,167.09,8.36582274]
[1641404111243,11.82625708,167.14,167.09,17.24822274]
[1641404111844,11.82625708,167.14,167.09,19.24822274]
[1641404112047,2.77923035,167.18,167.09,19.24822274]
[1641404112445,2.77923035,167.18,167.09,7.42196566]
[1641404112646,2.77923035,167.18,167.09,16.39066566]
[1641404112846,2.77923035,167.18,167.09,14.39066566]
[1641404114652,2.77923035,167.18,167.1,8.9685]
[1641404114852,2.77923035,167.18,167.1,17.5085]
[1641404117255,2.77923035,167.18,167.1,8.54]
[1641404127968,2.83923035,167.18,167.08,3.11248569]
[1641404128168,23.193,167.17,167.08,3.11248569]
[1641404128771,5.0,167.1,167.08,3.11248569]
[1641404128973,11.06439994,167.1,167.08,3.11248569]
[1641404129397,8.03219997,167.1,167.08,3.11248569]
[1641404129700,5.0,167.1,167.08,3.11248569]
[1641404130300,5.0,167.1,167.06,8.54]
[1641404130900,5.0,167.1,167.07,3.11288851]
[1641404131099,5.0,167.1,167.07,11.65288851]
[1641404131300,5.0,167.1,167.07,8.54]
[1641404133699,5.0,167.08,167.07,8.54]
[1641404134300,5.0,167.08,167.07,11.6529637]
[1641404138606,8.03219997,167.08,167.07,6.6529637]
[1641404138908,11.06439994,167.08,167.07,6.6529637]
[1641404141411,5.0,167.08,167.07,6.6529637]
[1641404142013,26.1710451,167.13,167.07,6.6529637]
[1641404142313,3.3470363,167.07,167.05,11.8118]
[1641404142515,3.3470363,167.07,167.06,8.54]
[1641404143714,8.3470363,167.07,167.06,8.54]
[1641404147617,8.3470363,167.07,167.06,35.54]
[1641404147817,8.3470363,167.07,167.06,44.5112]
[1641404148221,23.6472,167.13,167.07,41.0]
[1641404148421,23.6472,167.13,167.08,8.54]
[1641404148619,23.6472,167.13,167.08,3.54]
[1641404148819,24.5288,167.3,167.08,3.54]
[1641404149120,25.48590194,167.19,167.08,3.54]
[1641404149320,28.82874231,167.18,167.08,3.54]
[1641404149519,24.8693,167.17,167.08,3.54]
[1641404149819,24.8693,167.17,167.09,8.9698]
[1641404150019,24.8693,167.17,167.09,17.5098]
[1641404153623,24.8693,167.17,167.09,12.5098]
[1641404154223,24.8693,167.17,167.09,12.4102829]
[1641404155023,24.8693,167.17,167.09,8.54]
[1641404157148,24.8693,167.17,167.09,17.6953]
[1641404158049,24.9293,167.17,167.09,17.6953]
[1641404158651,24.9293,167.17,167.09,12.6953]
[1641404159252,24.9293,167.17,167.09,3.54]
[1641404161152,25.1893,167.17,167.09,3.54]
[1641404163655,1.46,167.09,167.05,2.84]
[1641404163860,1.46,167.09,167.06,8.54]
[1641404168861,6.06439994,167.08,167.06,3.54]
[1641404169259,1.46,167.09,167.06,3.54]
[1641404172164,23.4579,167.11,167.06,3.54]
[1641404172362,23.4579,167.11,167.06,2.08]
[1641404173764,2.92,167.06,167.04,9.0267]
[1641404173964,2.92,167.06,167.04,16.5667]
[1641404176971,5.95219997,167.06,167.04,16.5667]
[1641404177166,2.92,167.06,167.04,16.5667]
[1641404179672,8.98439994,167.06,167.04,16.5667]
[1641404180270,8.98439994,167.06,167.04,8.54]
[1641404180671,8.98439994,167.06,167.03,9.1229]
[1641404180869,2.92,167.06,167.03,9.1229]
[1641404181074,5.43726768,167.06,167.03,9.1229]
[1641404181371,5.43726768,167.06,167.0,457.7611776]
[1641404181670,5.43726768,167.06,167.0,36.65228381]
[1641404182272,31.59902867,167.05,167.0,45.49968381]
[1641404182473,31.59902867,167.05,167.0,39.49968381]
[1641404183473,31.59902867,167.05,167.0,38.49968381]
[1641404184071,31.59902867,167.05,167.0,29.65228381]
[1641404184878,31.65902867,167.05,167.0,29.65228381]
[1641404185077,31.65902867,167.05,167.0,26.54]
[1641404185479,31.91902867,167.05,167.0,18.0]
[1641404186078,31.91902867,167.05,166.99,10.0]
[1641404186680,31.91902867,167.05,166.99,9.5]
[1641404189282,84.0,167.03,166.92,0.34719673]
[1641404189507,59.76,167.01,166.9,447.83002229]
[1641404189708,84.06,166.99,166.88,8.9039]
[1641404189907,0.06,166.97,166.81,8.54]
[1641404190109,56.0484,166.97,166.81,8.54]
[1641404190410,56.5484,166.97,166.81,8.54]
[1641404190615,27.21455286,166.96,166.81,7.04]
[1641404190807,8.54,166.95,166.77,8.54]
[1641404191007,0.06,166.94,166.77,8.54]
[1641404191210,8.54,166.93,166.77,8.54]
[1641404191416,41.89062199,166.69,166.68,211.6301]
[1641404191612,8.54,166.8,166.68,8.9969]
[1641404191809,34.75691136,166.79,166.66,14.1489]
[1641404192009,8.54,166.78,166.66,1.0]
[1641404192308,84.06,166.77,166.65,16.58708744]
[1641404192509,84.0,166.75,166.63,9.0773]
[1641404192710,8.6,166.74,166.58,8.9033]
[1641404192910,17.61012206,166.73,166.56,29.93987029]
[1641404193110,8.6,166.72,166.55,2.28]
[1641404193510,8.86,166.72,166.55,4.59276325]
[1641404193710,8.86,166.72,166.55,2.28]
[1641404193913,9.36,166.72,166.55,2.28]
[1641404194214,9.36,166.72,166.56,25.38598253]
[1641404194413,8.86,166.72,166.56,25.38598253]
[1641404194612,8.86,166.72,166.56,27.57875859]
[1641404194813,8.1,166.72,166.56,27.57875859]
[1641404195012,8.1,166.72,166.57,7.82168043]
[1641404195312,0.06,166.72,166.58,2.23983018]
[1641404195512,83.6281,166.78,166.58,2.23983018]
[1641404195513,0.06,166.77,166.59,2.83736931]
[1641404195712,0.06,166.77,166.59,11.11094419]
[1641404195911,28.20639387,166.77,166.6,42.30340439]
[1641404196113,51.69359387,166.77,166.6,42.30340439]
[1641404196515,51.69359387,166.77,166.62,2.18]
[1641404196713,51.69359387,166.77,166.63,2.86073208]
[1641404197114,51.69359387,166.77,166.63,11.40073208]
[1641404197115,23.5472,166.77,166.63,11.40073208]
[1641404197314,23.5472,166.77,166.63,15.99080937]
[1641404197515,0.06,166.77,166.63,15.99080937]
[1641404197714,0.06,166.77,166.63,24.19216203]
[1641404197915,0.06,166.81,166.63,27.19216203]
[1641404198115,0.06,166.81,166.65,3.0]
[1641404198116,23.14540706,166.81,166.65,3.0]
[1641404198317,23.14540706,166.81,166.67,2.57173107]
[1641404198523,0.06,166.81,166.67,11.11173107]
[1641404199221,1.68794379,166.93,166.67,14.11173107]
[1641404199418,1.68794379,166.93,166.75,106.79]
[1641404199618,1.68794379,166.93,166.8,8.9843]
[1641404199619,0.06,166.92,166.8,8.9843]
[1641404199819,0.06,166.92,166.81,40.11749112]
[1641404200019,0.06,166.92,166.81,44.79342978]
[1641404200219,0.06,166.92,166.81,57.63802132]
[1641404200519,0.06,166.92,166.82,124.3105302]
[1641404200717,0.06,166.92,166.83,8.54]
[1641404200921,0.06,166.92,166.84,2.79141469]
[1641404201121,0.06,166.92,166.85,8.54]
[1641404201520,0.06,166.92,166.85,57.52666679]
[1641404201718,0.06,166.92,166.86,18.32566354]
[1641404202018,0.06,166.96,166.88,2.91656669]
[1641404202219,0.06,166.96,166.89,8.54]
[1641404202421,31.68078049,167.02,166.89,5.62]
[1641404202618,59.7,167.01,166.89,5.62]
[1641404202819,0.06,167.0,166.89,5.62]
[1641404204028,0.06,167.0,166.88,2.91656669]
[1641404204223,0.06,167.0,166.84,8.54]
[1641404204923,0.06,167.0,166.84,36.59625425]
[1641404205323,8.54,166.99,166.84,8.54]
[1641404205523,59.76,166.98,166.8,8.54]
[1641404205726,8.54,166.97,166.8,8.54]
[1641404205924,59.76,166.96,166.76,8.54]
[1641404206124,0.06,166.94,166.76,8.54]
[1641404206329,0.06,166.92,166.77,38.01707631]
[1641404206628,0.06,166.92,166.78,20.54178043]
[1641404206825,5.0,166.84,166.78,20.54178043]
[1641404207027,5.0,166.84,166.8,2.86721271]
[1641404208628,5.0,166.84,166.77,28.95648118]